fUSD/lending_fUSD_20260606
["ID","MTS","AMOUNT","RATE_DAILY","PERIOD"]
[424286900,1780752650000,-3041.2,0.00022,2]
[424286902,1780752650000,-5000.0,0.00022018,2]
[424286895,1780752650000,-5072.6,0.00022,10]
[424286896,1780752650000,-275.24642946,0.00022,2]
[424286901,1780752650000,-5000.0,0.00022018,2]
[424286905,1780752650000,-1261.38402234,0.000221,2]
[424286892,1780752650000,-12318.36988822,0.0002199,2]
[424286894,1780752650000,-4855.48,0.00021993,2]
[424286899,1780752650000,-300.0,0.00022,2]
[424286969,1780752651000,-2781.82699784,0.00022538,2]
[424286978,1780752651000,-973.75,0.000226,7]
[424286967,1780752651000,-927.27566594,0.00022538,2]
[424286974,1780752651000,-200.0,0.00022538,2]
[424286972,1780752651000,-500.0,0.00022538,2]
[424286973,1780752651000,-1910.18787185,0.00022538,2]
[424286966,1780752651000,-200.0,0.00022538,2]
[424286968,1780752651000,-233.5188934,0.00022538,2]
[424286975,1780752651000,-280.03725111,0.00022538,2]
[424286976,1780752651000,-12774.14957409,0.00022538,2]
[424286970,1780752651000,-280.03725111,0.00022538,2]
[424286983,1780752651000,-1025.55,0.00022728,7]
[424286981,1780752651000,-1261.38402234,0.000227,2]
[424286987,1780752651000,-1000.0,0.0002297,2]
[424286977,1780752651000,-200.0,0.00022538,2]
[424286979,1780752651000,-168.33,0.00022603,2]
[424286984,1780752651000,-152.81900171,0.0002275,7]
[424286985,1780752651000,-1000.0,0.0002297,2]
[424286982,1780752651000,-1086.19,0.00022728,7]
[424286980,1780752651000,-4855.5,0.00022678,2]
[424286989,1780752651000,-1000.0,0.0002297,2]
[424286994,1780752651000,-1042.263907,0.00023,2]
[424286963,1780752651000,-151.0,0.00022538,2]
[424286986,1780752651000,-500.0,0.0002297,2]
[424286965,1780752651000,-280.03725111,0.00022538,2]
[424286949,1780752651000,-675.28,0.00022466,2]
[424286962,1780752651000,-1261.38402234,0.000225,2]
[424286996,1780752651000,-2786.55436936,0.00023,2]
[424286948,1780752651000,-613.43,0.00022466,2]
[424286947,1780752651000,-235.6,0.00022466,2]
[424286943,1780752651000,-172.0,0.00022463,2]
[424286946,1780752651000,-168.98,0.00022466,2]
[424286945,1780752651000,-269.26,0.00022466,2]
[424286942,1780752651000,-330.0,0.00022463,2]
[424286944,1780752651000,-406.98,0.00022466,2]
[424286940,1780752651000,-350.0,0.00022463,2]
[424286938,1780752651000,-350.0,0.00022463,2]
[424286941,1780752651000,-350.0,0.00022463,2]
[424286964,1780752651000,-374.31742255,0.00022538,2]
[424286939,1780752651000,-350.0,0.00022463,2]
[424286951,1780752651000,-575.47,0.00022466,2]
[424286957,1780752651000,-400.0,0.0002247,2]
[424286956,1780752651000,-400.0,0.0002247,2]
[424286953,1780752651000,-400.0,0.0002247,2]
[424286955,1780752651000,-400.0,0.0002247,2]
[424286954,1780752651000,-400.0,0.0002247,2]
[424286958,1780752651000,-400.0,0.0002247,2]
[424286959,1780752651000,-400.0,0.0002247,2]
[424286961,1780752651000,-336.0,0.0002247,2]
[424286950,1780752651000,-2160.69,0.00022466,2]
[424286960,1780752651000,-400.0,0.0002247,2]
[424286952,1780752651000,-400.0,0.0002247,2]
[424286990,1780752651000,-500.0,0.0002297,2]
[424286971,1780752651000,-151.0,0.00022538,2]
[424286997,1780752651000,-2786.55436936,0.00023,2]
[424287023,1780752651000,-250.99703328,0.00023121,14]
[424287022,1780752651000,-201.10477384,0.00023121,14]
[424287032,1780752651000,-880.98792683,0.00023358,14]
[424287033,1780752651000,-2322.0,0.00023381,3]
[424287030,1780752651000,-150.0,0.00023288,2]
[424287029,1780752651000,-382.0,0.00023235,2]
[424287027,1780752651000,-880.98792683,0.00023229,14]
[424287024,1780752651000,-200.0,0.00023157,2]
[424287025,1780752651000,-880.98792683,0.00023164,14]
[424287031,1780752651000,-880.98792683,0.00023294,14]
[424287028,1780752651000,-1274.0,0.00023235,2]
[424287019,1780752651000,-13246.79310833,0.00023086,2]
[424287026,1780752651000,-152.0,0.00023202,30]
[424287035,1780752651000,-993.84,0.0002339,7]
[424287037,1780752651000,-880.98792683,0.00023423,14]
[424287040,1780752651000,-1063.21,0.00023454,7]
[424287039,1780752651000,-758.03,0.00023454,7]
[424287038,1780752651000,-177.66,0.00023425,2]
[424287042,1780752651000,-880.98792683,0.00023552,30]
[424287034,1780752651000,-1052.6,0.0002339,7]
[424287043,1780752651000,-880.98792683,0.00023617,30]
[424287041,1780752651000,-880.98792683,0.00023487,30]
[424287044,1780752651000,-174.61919141,0.0002363,2]
[424287045,1780752651000,-242.15909246,0.0002363,2]
[424287036,1780752651000,-14184.8,0.00023416,7]
[424287020,1780752651000,-880.98792683,0.000231,14]
[424286999,1780752651000,-4548.45604344,0.00023,2]
[424287016,1780752651000,-200.0,0.00023086,2]
[424287018,1780752651000,-200.0,0.00023086,2]
[424286988,1780752651000,-500.0,0.0002297,2]
[424286995,1780752651000,-200.0,0.00023,10]
[424286993,1780752651000,-1261.38402234,0.00023,2]
[424286991,1780752651000,-500.0,0.00023,7]
[424286998,1780752651000,-215.80795776,0.00023,7]
[424286992,1780752651000,-1000.23409663,0.00023,2]
[424287000,1780752651000,-4548.45604344,0.00023,2]
[424287003,1780752651000,-880.98792683,0.00023035,14]
[424287002,1780752651000,-443.97712866,0.00023,2]
[424287004,1780752651000,-573.03,0.00023047,2]
[424287005,1780752651000,-151.0,0.00023086,2]
[424287001,1780752651000,-3002.0430685,0.00023,2]
[424287008,1780752651000,-961.58486558,0.00023086,2]
[424287007,1780752651000,-290.3986294,0.00023086,2]
[424287015,1780752651000,-1980.8648231,0.00023086,2]
[424287012,1780752651000,-2884.75459676,0.00023086,2]
[424287046,1780752651000,-621.78829552,0.00023632,2]
[424287014,1780752651000,-500.0,0.00023086,2]
[424287013,1780752651000,-151.0,0.00023086,2]
[424287017,1780752651000,-290.3986294,0.00023086,2]
[424287010,1780752651000,-242.15909246,0.00023086,2]
[424287009,1780752651000,-200.0,0.00023086,2]
[424287006,1780752651000,-388.16716718,0.00023086,2]
[424287011,1780752651000,-290.3986294,0.00023086,2]
[424287021,1780752651000,-300.0,0.000231,10]
[424287087,1780752652000,-151.0,0.00024,4]
[424287089,1780752652000,-500.0,0.00024,2]
[424287086,1780752652000,-973.75,0.00024,7]
[424287083,1780752652000,-200.0,0.00023933,2]
[424287092,1780752652000,-590.87,0.0002411,2]
[424287085,1780752652000,-190.22,0.00023997,2]
[424287077,1780752652000,-977.19,0.00023838,30]
[424287082,1780752652000,-180.20769026,0.00023923,30]
[424287075,1780752652000,-880.98792683,0.00023811,30]
[424287078,1780752652000,-573.03,0.00023869,2]
[424287076,1780752652000,-957.49,0.00023838,30]
[424287084,1780752652000,-880.98792683,0.0002394,60]
[424287091,1780752652000,-880.98792683,0.00024069,60]
[424287104,1780752652000,-4204.8,0.00024324,2]
[424287093,1780752652000,-503.54,0.0002411,2]
[424287094,1780752652000,-880.98792683,0.00024134,60]
[424287095,1780752652000,-735.29,0.00024158,7]
[424287098,1780752652000,-200.0,0.00024182,2]
[424287099,1780752652000,-260.4103811,0.00024182,2]
[424287097,1780752652000,-417.4229384,0.00024182,2]
[424287100,1780752652000,-1019.0,0.00024273,7]
[424287096,1780752652000,-1031.31,0.00024158,7]
[424287101,1780752652000,-962.12,0.00024273,7]
[424287103,1780752652000,-985.30280392,0.00024301,2]
[424287102,1780752652000,-10800.36089355,0.0002429,7]
[424287073,1780752652000,-5000.0,0.00023777,2]
[424287090,1780752652000,-880.98792683,0.00024005,60]
[424287074,1780752652000,-5000.0,0.00023777,2]
[424287069,1780752652000,-880.98792683,0.00023746,30]
[424287081,1780752652000,-500.0,0.00023923,30]
[424287047,1780752652000,-775.4783256,0.00023632,2]
[424287054,1780752652000,-2991.49051684,0.00023634,2]
[424287055,1780752652000,-301.14337869,0.00023634,2]
[424287053,1780752652000,-251.11897888,0.00023634,2]
[424287056,1780752652000,-151.0,0.00023634,2]
[424287057,1780752652000,-2054.15682156,0.00023634,2]
[424287051,1780752652000,-200.0,0.00023634,2]
[424287052,1780752652000,-402.52935237,0.00023634,2]
[424287050,1780752652000,-997.16350561,0.00023634,2]
[424287049,1780752652000,-301.14337869,0.00023634,2]
[424287048,1780752652000,-151.0,0.00023634,2]
[424287058,1780752652000,-500.0,0.00023634,2]
[424287062,1780752652000,-13736.92445333,0.00023634,2]
[424287061,1780752652000,-200.0,0.00023634,2]
[424287060,1780752652000,-301.14337869,0.00023634,2]
[424287105,1780752652000,-541.0,0.00024437,2]
[424287063,1780752652000,-880.98792683,0.00023681,30]
[424287059,1780752652000,-200.0,0.00023634,2]
[424287066,1780752652000,-5000.0,0.00023705,2]
[424287064,1780752652000,-5000.0,0.00023705,2]
[424287065,1780752652000,-5000.0,0.00023705,2]
[424287067,1780752652000,-5000.0,0.00023705,2]
[424287068,1780752652000,-5000.0,0.00023705,2]
[424287071,1780752652000,-5000.0,0.00023777,2]
[424287070,1780752652000,-5000.0,0.00023777,2]
[424287080,1780752652000,-195.26,0.00023879,2]
[424287072,1780752652000,-5000.0,0.00023777,2]
[424287079,1780752652000,-880.98792683,0.00023875,30]
[424287113,1780752652000,-250.0,0.00024658,2]
[424287088,1780752652000,-1042.263907,0.00024,2]
[424287107,1780752652000,-1000.0,0.00024658,2]
[424287137,1780752652000,-617.346821,0.00024658,2]
[424287142,1780752652000,-617.346821,0.00024658,2]
[424287141,1780752652000,-617.346821,0.00024658,2]
[424287139,1780752652000,-617.346821,0.00024658,2]
[424287145,1780752652000,-617.346821,0.00024658,2]
[424287155,1780752652000,-152.350853,0.00024658,2]
[424287150,1780752652000,-617.346821,0.00024658,2]
[424287152,1780752652000,-617.346825,0.00024658,2]
[424287144,1780752652000,-617.346821,0.00024658,2]
[424287151,1780752652000,-617.346821,0.00024658,2]
[424287153,1780752652000,-1005.02,0.00024658,2]
[424287149,1780752652000,-617.346821,0.00024658,2]
[424287146,1780752652000,-617.346821,0.00024658,2]
[424287147,1780752652000,-617.346821,0.00024658,2]
[424287148,1780752652000,-617.346821,0.00024658,2]
[424287154,1780752652000,-152.350853,0.00024658,2]
[424287156,1780752652000,-152.350853,0.00024658,2]
[424287158,1780752652000,-152.350853,0.00024658,2]
[424287160,1780752652000,-152.350853,0.00024658,2]
[424287159,1780752652000,-152.350853,0.00024658,2]
[424287162,1780752652000,-152.350853,0.00024658,2]
[424287157,1780752652000,-152.350853,0.00024658,2]
[424287165,1780752652000,-152.350853,0.00024658,2]
[424287163,1780752652000,-152.350853,0.00024658,2]
[424287161,1780752652000,-152.350853,0.00024658,2]
[424287166,1780752652000,-152.350853,0.00024658,2]
[424287106,1780752652000,-167.63452669,0.00024658,2]
[424287134,1780752652000,-617.346821,0.00024658,2]
[424287135,1780752652000,-617.346821,0.00024658,2]
[424287164,1780752652000,-152.350853,0.00024658,2]
[424287132,1780752652000,-219.048138,0.00024658,2]
[424287143,1780752652000,-617.346821,0.00024658,2]
[424287109,1780752652000,-250.0,0.00024658,2]
[424287116,1780752652000,-151.0,0.00024658,2]
[424287110,1780752652000,-250.0,0.00024658,2]
[424287114,1780752652000,-250.0,0.00024658,2]
[424287112,1780752652000,-250.0,0.00024658,2]
[424287117,1780752652000,-151.0,0.00024658,2]
[424287111,1780752652000,-250.0,0.00024658,2]
[424287115,1780752652000,-229.635558,0.00024658,2]
[424287118,1780752652000,-151.0,0.00024658,2]
[424287120,1780752652000,-151.0,0.00024658,2]
[424287119,1780752652000,-151.0,0.00024658,2]
[424287121,1780752652000,-151.0,0.00024658,2]
[424287130,1780752652000,-151.0,0.00024658,2]
[424287108,1780752652000,-250.0,0.00024658,2]
[424287126,1780752652000,-151.0,0.00024658,2]
[424287129,1780752652000,-151.0,0.00024658,2]
[424287128,1780752652000,-151.0,0.00024658,2]
[424287131,1780752652000,-151.0,0.00024658,2]
[424287124,1780752652000,-151.0,0.00024658,2]
[424287123,1780752652000,-151.0,0.00024658,2]
[424287125,1780752652000,-151.0,0.00024658,2]
[424287127,1780752652000,-151.0,0.00024658,2]
[424287122,1780752652000,-151.0,0.00024658,2]
[424287133,1780752652000,-617.346821,0.00024658,2]
[424287136,1780752652000,-617.346821,0.00024658,2]
[424287138,1780752652000,-617.346821,0.00024658,2]
[424287140,1780752652000,-617.346821,0.00024658,2]
[424287209,1780752653000,-439.12,0.00025,2]
[424287222,1780752653000,-164.93111696,0.00025397,2]
[424287212,1780752653000,-439.12,0.00025,2]
[424287214,1780752653000,-439.12,0.00025,2]
[424287206,1780752653000,-439.12,0.00025,2]
[424287199,1780752653000,-323.0,0.00025,5]
[424287198,1780752653000,-6045.32864969,0.00025,10]
[424287202,1780752653000,-151.0,0.00025,4]
[424287195,1780752653000,-56288.56973458,0.00025,7]
[424287197,1780752653000,-213530.32866348,0.00025,2]
[424287196,1780752653000,-2102.30423461,0.00025,2]
[424287200,1780752653000,-180.9153025,0.00025,2]
[424287208,1780752653000,-439.12,0.00025,2]
[424287216,1780752653000,-56147.0,0.000251,2]
[424287211,1780752653000,-439.12,0.00025,2]
[424287213,1780752653000,-439.12,0.00025,2]
[424287207,1780752653000,-439.12,0.00025,2]
[424287215,1780752653000,-2325.52,0.00025041,2]
[424287217,1780752653000,-14184.8,0.00025124,7]
[424287223,1780752653000,-157.42524923,0.00025397,2]
[424287221,1780752653000,-280.03725111,0.00025278,2]
[424287228,1780752653000,-573.03,0.00025576,2]
[424287219,1780752653000,-448.88368785,0.00025278,2]
[424287218,1780752653000,-500.0,0.00025193,2]
[424287220,1780752653000,-200.0,0.00025278,2]
[424287229,1780752653000,-185.04,0.00025671,2]
[424287205,1780752653000,-439.12,0.00025,2]
[424287210,1780752653000,-439.12,0.00025,2]
[424287204,1780752653000,-215.80795776,0.00025,7]
[424287183,1780752653000,-270.0455652,0.0002473,2]
[424287201,1780752653000,-152337.4135236,0.00025,2]
[424287225,1780752653000,-312.45047246,0.00025417,2]
[424287167,1780752653000,-152.350853,0.00024658,2]
[424287169,1780752653000,-152.350853,0.00024658,2]
[424287170,1780752653000,-152.350853,0.00024658,2]
[424287171,1780752653000,-152.350853,0.00024658,2]
[424287180,1780752653000,-200.0,0.00024709,2]
[424287172,1780752653000,-152.350853,0.00024658,2]
[424287179,1780752653000,-395.94,0.00024701,2]
[424287174,1780752653000,-150.0,0.00024658,2]
[424287177,1780752653000,-300.0,0.00024658,14]
[424287175,1780752653000,-500.0,0.00024658,2]
[424287173,1780752653000,-152.350857,0.00024658,2]
[424287176,1780752653000,-510.57684065,0.00024658,2]
[424287178,1780752653000,-185.04,0.000247,2]
[424287181,1780752653000,-200.0,0.0002473,2]
[424287182,1780752653000,-432.86758713,0.0002473,2]
[424287191,1780752653000,-999.42,0.00024862,7]
[424287192,1780752653000,-350.0,0.00024907,6]
[424287184,1780752653000,-500.0,0.00024745,30]
[424287187,1780752653000,-572.9,0.00024755,2]
[424287189,1780752653000,-185.04,0.00024849,2]
[424287186,1780752653000,-572.78,0.00024754,2]
[424287190,1780752653000,-712.54,0.00024862,7]
[424287188,1780752653000,-3041.2,0.00024798,7]
[424287185,1780752653000,-180.20769026,0.00024745,30]
[424287194,1780752653000,-251.11897888,0.00024999,2]
[424287193,1780752653000,-305.89135153,0.00024999,2]
[424287203,1780752653000,-215.80795776,0.00025,10]
[424287227,1780752653000,-169.67,0.00025539,2]
[424287168,1780752653000,-152.350853,0.00024658,2]
[424287224,1780752653000,-973.75,0.000254,7]
[424287259,1780752653000,-644.79446245,0.00026371,2]
[424287255,1780752653000,-481.79,0.00026335,2]
[424287262,1780752653000,-200.0,0.00026374,2]
[424287258,1780752653000,-260.4103811,0.00026368,2]
[424287266,1780752653000,-1323.30755,0.00026384,2]
[424287273,1780752653000,-1323.30755,0.00026384,2]
[424287278,1780752653000,-1323.30755,0.00026384,2]
[424287275,1780752653000,-1323.30755,0.00026384,2]
[424287277,1780752653000,-1323.30755,0.00026384,2]
[424287276,1780752653000,-1323.30755,0.00026384,2]
[424287267,1780752653000,-1323.30755,0.00026384,2]
[424287271,1780752653000,-1323.30755,0.00026384,2]
[424287269,1780752653000,-1323.30755,0.00026384,2]
[424287257,1780752653000,-648.21,0.00026345,2]
[424287272,1780752653000,-1323.30755,0.00026384,2]
[424287270,1780752653000,-1323.30755,0.00026384,2]
[424287279,1780752653000,-1323.30755,0.00026384,2]
[424287284,1780752653000,-164.93111696,0.00026397,2]
[424287283,1780752653000,-1323.307554,0.00026384,2]
[424287285,1780752653000,-308.95208274,0.00026397,2]
[424287286,1780752653000,-319.77896214,0.00026397,2]
[424287281,1780752653000,-1323.30755,0.00026384,2]
[424287280,1780752653000,-1323.30755,0.00026384,2]
[424287287,1780752653000,-315.71068334,0.00026397,2]
[424287288,1780752653000,-299.4596383,0.00026397,2]
[424287226,1780752653000,-200.0,0.00025485,2]
[424287282,1780752653000,-1323.30755,0.00026384,2]
[424287289,1780752653000,-302.96401226,0.00026397,2]
[424287268,1780752653000,-1323.30755,0.00026384,2]
[424287260,1780752653000,-804.17102365,0.00026371,2]
[424287274,1780752653000,-1323.30755,0.00026384,2]
[424287261,1780752653000,-442.2156097,0.00026374,2]
[424287230,1780752653000,-215.80795776,0.000258,7]
[424287233,1780752653000,-290.3986294,0.00025826,2]
[424287231,1780752653000,-465.4923843,0.00025826,2]
[424287239,1780752653000,-463.40915835,0.00026,2]
[424287232,1780752653000,-200.0,0.00025826,2]
[424287236,1780752653000,-76696.01955962,0.00026,2]
[424287238,1780752653000,-220.10517838,0.00026,2]
[424287264,1780752653000,-1323.30755,0.00026384,2]
[424287241,1780752653000,-550.0,0.00026,2]
[424287240,1780752653000,-151.0,0.00026,4]
[424287237,1780752653000,-4598.79772599,0.00026,2]
[424287235,1780752653000,-851.98,0.00026,2]
[424287243,1780752653000,-422.05,0.00026027,7]
[424287244,1780752653000,-359.67,0.00026027,7]
[424287234,1780752653000,-610.94171144,0.0002599,2]
[424287245,1780752653000,-287.0,0.00026027,2]
[424287253,1780752653000,-200.0,0.0002626,2]
[424287263,1780752653000,-301.14337869,0.00026374,2]
[424287265,1780752653000,-1323.30755,0.00026384,2]
[424287256,1780752653000,-500.0,0.00026341,14]
[424287251,1780752653000,-1274.0,0.00026235,2]
[424287247,1780752653000,-150.0,0.00026028,2]
[424287249,1780752653000,-340.10384513,0.00026115,30]
[424287248,1780752653000,-300.0,0.00026028,14]
[424287246,1780752653000,-254.0,0.00026027,2]
[424287254,1780752653000,-4204.8,0.00026296,2]
[424287252,1780752653000,-382.0,0.00026235,2]
[424287242,1780752653000,-5530.0,0.00026,3]
[424287250,1780752653000,-811.0,0.00026183,2]
[424287301,1780752654000,-482.15,0.00026463,2]
[424287298,1780752654000,-442.65,0.00026398,2]
[424287302,1780752654000,-200.0,0.00026485,2]
[424287299,1780752654000,-184.0,0.00026399,2]
[424287300,1780752654000,-27956.72095407,0.000264,2]
[424287296,1780752654000,-157.42524923,0.00026397,2]
[424287290,1780752654000,-287.8527455,0.00026397,2]
[424287295,1780752654000,-288.13627946,0.00026397,2]
[424287294,1780752654000,-293.1135015,0.00026397,2]
[424287293,1780752654000,-277.93200332,0.00026397,2]
[424287291,1780752654000,-339.1439501,0.00026397,2]
[424287292,1780752654000,-275.25092556,0.00026397,2]
[424287303,1780752654000,-200.0,0.00026485,2]
[424287297,1780752654000,-225.54507814,0.00026397,2]
[424287304,1780752654000,-200.0,0.00026486,2]
[424287309,1780752654000,-14184.8,0.00026832,7]
[424287306,1780752654000,-200.0,0.00026486,2]
[424287307,1780752654000,-482.15,0.00026493,2]
[424287320,1780752654000,-200.0,0.00027036,2]
[424287318,1780752654000,-161.0,0.00027,7]
[424287321,1780752654000,-13010.42928694,0.00027111,2]
[424287316,1780752654000,-151.0,0.00027,4]
[424287317,1780752654000,-763.029473,0.00027,2]
[424287315,1780752654000,-530.0,0.00027,2]
[424287319,1780752654000,-5530.0,0.00027,5]
[424287311,1780752654000,-885.38867004,0.00026884,5]
[424287312,1780752654000,-200.0,0.00026922,2]
[424287313,1780752654000,-250.0,0.00027,2]
[424287310,1780752654000,-2000.0,0.00026849,7]
[424287308,1780752654000,-152.0,0.00026501,3]
[424287305,1780752654000,-200.0,0.00026486,2]
[424287314,1780752654000,-1053.00911247,0.00027,2]
[424287331,1780752655000,-616.24,0.00013698,2]
[424287337,1780752655000,-1597.0,0.00027123,2]
[424287339,1780752655000,-601.84602946,0.00027123,2]
[424287336,1780752655000,-179.0,0.00027123,2]
[424287338,1780752655000,-1295.15397054,0.00027123,2]
[424287341,1780752655000,-1355.0,0.00027123,2]
[424287343,1780752655000,-973.75,0.000272,7]
[424287332,1780752655000,-8484.67905697,0.00027111,2]
[424287322,1780752655000,-151.0,8.852e-05,2]
[424287328,1780752655000,-616.24,0.00013698,2]
[424287324,1780752655000,-151.0,8.852e-05,2]
[424287327,1780752655000,-616.24,0.00013698,2]
[424287329,1780752655000,-616.24,0.00013698,2]
[424287325,1780752655000,-616.24,0.00013698,2]
[424287330,1780752655000,-616.24,0.00013698,2]
[424287333,1780752655000,-21685.0,0.00027123,2]
[424287323,1780752655000,-151.0,8.852e-05,2]
[424287326,1780752655000,-616.24,0.00013698,2]
[424287334,1780752655000,-2169.43196399,0.00027123,2]
[424287342,1780752655000,-706.0,0.00027137,2]
[424287340,1780752655000,-1278.0,0.00027123,2]
[424287360,1780752655000,-474.18696108,0.00027397,2]
[424287362,1780752655000,-46.11078681,0.00027397,2]
[424287358,1780752655000,-175.6980611,0.00027397,7]
[424287359,1780752655000,-203.98924196,0.00027397,7]
[424287356,1780752655000,-423.51991579,0.00027397,2]
[424287355,1780752655000,-8268.38712339,0.0002739,2]
[424287335,1780752655000,-1789.0,0.00027123,2]
[424287354,1780752655000,-4185.20803368,0.0002739,2]
[424287353,1780752655000,-348.0,0.00027317,2]
[424287357,1780752655000,-163.35840608,0.00027397,7]
[424287351,1780752655000,-275.41505733,0.000273,30]
[424287350,1780752655000,-1790.940308,0.00027241,2]
[424287352,1780752655000,-275.41505732,0.000273,30]
[424287349,1780752655000,-1500.0,0.00027241,2]
[424287347,1780752655000,-1500.0,0.00027241,2]
[424287345,1780752655000,-1500.0,0.00027241,2]
[424287346,1780752655000,-1500.0,0.00027241,2]
[424287348,1780752655000,-1502.366718,0.00027241,2]
[424287344,1780752655000,-643.74,0.00027221,2]
[424287361,1780752655000,-1994.0,0.00027397,2]
[424287363,1780752656000,-150.0,7.368e-05,2]
[424287364,1780752656000,-151.0,8.852e-05,2]
[424287365,1780752656000,-53.58913724,9.382e-05,2]
[424287366,1780752656000,-97.41086276,9.382e-05,2]
[424287369,1780752656000,-73.90350763,0.00012368,2]
[424287368,1780752656000,-185.6716272,9.846e-05,2]
[424287367,1780752656000,-151.0,9.382e-05,2]
[424287372,1780752656000,-613.45125012,0.00013698,2]
[424287371,1780752656000,-151.0,0.00012386,2]
[424287373,1780752656000,-155.90479873,7.38e-05,2]
[424287374,1780752656000,-2.98056479,0.00013698,2]
[424287375,1780752656000,-151.0,0.00013699,2]
[424287376,1780752656000,-122.31822945,0.00013699,2]
[424287370,1780752656000,-125.59649237,0.00012368,2]
[424287377,1780752674000,152.0,7.193e-05,7]
[424287378,1780752690000,2300.604338,0.00027093,120]
[424287380,1780752692000,2137.870942,0.00027093,120]
[424287379,1780752692000,4281.967859,0.00026884,120]
[424287383,1780752880000,200.0,0.00030136,120]
[424287386,1780752930000,152.0,0.0003013,120]
[424287385,1780752930000,152.0,0.0003013,120]
[424287388,1780752930000,152.0,0.0003013,120]
[424287387,1780752930000,152.0,0.0003013,120]
[424287389,1780752931000,152.0,0.0003013,120]
[424287390,1780752932000,152.0,0.0003013,120]
[424287392,1780752933000,154.96377585,0.0003013,120]
[424287391,1780752933000,152.0,0.0003013,120]
[424287394,1780752944000,166.0,0.0003013,120]
[424287393,1780752944000,166.0,0.0003013,120]
[424287402,1780752950000,-500.0,7.356e-05,2]
[424287395,1780752950000,-2163.862,7.21e-05,2]
[424287397,1780752950000,-500.0,7.356e-05,2]
[424287396,1780752950000,-197.982,7.21e-05,2]
[424287400,1780752950000,-183.1134386,7.356e-05,2]
[424287399,1780752950000,-500.0,7.356e-05,2]
[424287401,1780752950000,-500.0,7.356e-05,2]
[424287403,1780752950000,-500.0,7.356e-05,2]
[424287398,1780752950000,-500.0,7.356e-05,2]
[424287405,1780752950000,-500.0,7.356e-05,2]
[424287412,1780752950000,-366.6867638,7.357e-05,2]
[424287410,1780752950000,-500.0,7.356e-05,2]
[424287408,1780752950000,-588.3557976,7.356e-05,2]
[424287411,1780752950000,-500.0,7.356e-05,2]
[424287409,1780752950000,-500.0,7.356e-05,2]
[424287407,1780752950000,-500.0,7.356e-05,2]
[424287406,1780752950000,-500.0,7.356e-05,2]
[424287404,1780752950000,-500.0,7.356e-05,2]
[424287413,1780752951000,-10000.0,7.357e-05,2]
[424287415,1780752952000,-10000.0,7.357e-05,2]
[424287414,1780752952000,-10000.0,7.357e-05,2]
[424287416,1780752953000,-10000.0,7.357e-05,2]
[424287418,1780752953000,-10000.0,7.357e-05,2]
[424287417,1780752953000,-10000.0,7.357e-05,2]
[424287420,1780752954000,-9850.0,7.357e-05,2]
[424287419,1780752954000,-150.0,7.283e-05,2]
[424287421,1780752954000,-10000.0,7.357e-05,2]
[424287424,1780752955000,-10000.0,7.357e-05,2]
[424287423,1780752955000,-10000.0,7.357e-05,2]
[424287422,1780752955000,-10000.0,7.357e-05,2]
[424287425,1780752956000,-10000.0,7.357e-05,2]
[424287426,1780752957000,-10000.0,7.357e-05,2]
[424287427,1780752958000,-10000.0,7.357e-05,2]
[424287434,1780753222000,152.0,0.0003013,120]
[424287433,1780753222000,152.0,0.0003013,120]
[424287438,1780753223000,152.0,0.0003013,120]
[424287437,1780753223000,152.0,0.0003013,120]